[Event "*** Titled Tuesday Blitz"]
[Site "Chess.com"]
[Date "2021.03.09"]
[Round "11"]
[White "muchojogo"]
[Black "StockholmMissile"]
[Result "1-0"]
[WhiteElo "2418"]
[BlackElo "2570"]
[TimeControl "180+1"]
[EndTime "12:10:31 PST"]
[Termination "muchojogo won on time"]

1. d4 {[%clk 0:03:00.9]} 1... d5 {[%clk 0:02:59.6]} 2. Bf4 {[%clk 0:02:53.1]}
2... Nf6 {[%clk 0:02:59.2]} 3. e3 {[%clk 0:02:54]} 3... c5 {[%clk 0:02:59.4]} 4.
Nd2 {[%clk 0:02:52.3]} 4... Nc6 {[%clk 0:02:59.4]} 5. Ngf3 {[%clk 0:02:52.2]}
5... e6 {[%clk 0:02:58.9]} 6. c3 {[%clk 0:02:51.3]} 6... Be7 {[%clk 0:02:58.2]}
7. Bd3 {[%clk 0:02:50.4]} 7... Nh5 {[%clk 0:02:57.7]} 8. Be5 {[%clk 0:02:40.5]}
8... O-O {[%clk 0:02:56.5]} 9. O-O {[%clk 0:02:36.5]} 9... Nxe5 {[%clk
0:02:55.3]} 10. Nxe5 {[%clk 0:02:37.3]} 10... Nf6 {[%clk 0:02:55.2]} 11. f4
{[%clk 0:02:37.6]} 11... b6 {[%clk 0:02:52]} 12. g4 {[%clk 0:02:36.2]} 12... Bb7
{[%clk 0:02:48.6]} 13. Qf3 {[%clk 0:02:35.4]} 13... Ne8 {[%clk 0:02:38]} 14. g5
{[%clk 0:02:19.1]} 14... f5 {[%clk 0:02:24]} 15. Qh5 {[%clk 0:02:13.9]} 15...
Nd6 {[%clk 0:02:21.2]} 16. Rf3 {[%clk 0:02:11]} 16... Qe8 {[%clk 0:02:09.4]} 17.
Qh4 {[%clk 0:02:02.5]} 17... h5 {[%clk 0:01:58.8]} 18. Rh3 {[%clk 0:02:02]}
18... g6 {[%clk 0:01:58.7]} 19. Be2 {[%clk 0:01:48.4]} 19... Rc8 {[%clk
0:01:34.6]} 20. Qg3 {[%clk 0:01:47.8]} 20... Rc7 {[%clk 0:01:30.7]} 21. Rh4
{[%clk 0:01:44.2]} 21... Bd8 {[%clk 0:01:26.6]} 22. Qh3 {[%clk 0:01:44]} 22...
Rh7 {[%clk 0:01:23.5]} 23. Kf2 {[%clk 0:01:41.4]} 23... Ne4+ {[%clk 0:01:03.3]}
24. Nxe4 {[%clk 0:01:40.9]} 24... fxe4 {[%clk 0:01:03.3]} 25. Qg3 {[%clk
0:01:39]} 25... Bc7 {[%clk 0:01:01.9]} 26. Ke1 {[%clk 0:01:33.3]} 26... cxd4
{[%clk 0:01:01.5]} 27. exd4 {[%clk 0:01:29.2]} 27... Bxe5 {[%clk 0:00:59]} 28.
dxe5 {[%clk 0:01:17.9]} 28... Qe7 {[%clk 0:00:58.7]} 29. Qe3 {[%clk 0:01:17]}
29... Qc5 {[%clk 0:00:57.2]} 30. Kd2 {[%clk 0:01:11.1]} 30... Rd7 {[%clk
0:00:56.5]} 31. Qd4 {[%clk 0:01:08]} 31... Rc8 {[%clk 0:00:41.4]} 32. Ke3 {[%clk
0:01:06.5]} 32... Qa5 {[%clk 0:00:39.6]} 33. f5 {[%clk 0:01:02.2]} 33... exf5
{[%clk 0:00:37.6]} 34. e6 {[%clk 0:01:02.2]} 34... Rg7 {[%clk 0:00:34.6]} 35.
Bxh5 {[%clk 0:00:46.4]} 35... gxh5 {[%clk 0:00:32.6]} 36. Rxh5 {[%clk
0:00:47.3]} 36... Qc5 {[%clk 0:00:31.2]} 37. Rf1 {[%clk 0:00:44.4]} 37... Rf8
{[%clk 0:00:27.7]} 38. h4 {[%clk 0:00:35.8]} 38... Qxd4+ {[%clk 0:00:23.9]} 39.
cxd4 {[%clk 0:00:35.6]} 39... Bc8 {[%clk 0:00:16.6]} 40. Rh6 {[%clk 0:00:35.5]}
40... Re7 {[%clk 0:00:14.7]} 41. Kf4 {[%clk 0:00:30.5]} 41... Rxe6 {[%clk
0:00:14.3]} 42. Rxe6 {[%clk 0:00:30.5]} 42... Bxe6 {[%clk 0:00:15.2]} 43. Ke5
{[%clk 0:00:31.4]} 43... Bc8 {[%clk 0:00:15.1]} 44. h5 {[%clk 0:00:31.8]} 44...
e3 {[%clk 0:00:11.9]} 45. Kf4 {[%clk 0:00:31.9]} 45... Re8 {[%clk 0:00:11.4]}
46. Re1 {[%clk 0:00:31.6]} 46... Re4+ {[%clk 0:00:10.8]} 47. Kf3 {[%clk
0:00:31.3]} 47... f4 {[%clk 0:00:09.1]} 48. h6 {[%clk 0:00:31.1]} 48... Kh7
{[%clk 0:00:09.3]} 49. Rc1 {[%clk 0:00:31.3]} 49... Bd7 {[%clk 0:00:05.2]} 50.
Rc7 {[%clk 0:00:30.9]} 50... e2 {[%clk 0:00:05.3]} 51. Rxd7+ {[%clk 0:00:31.1]}
51... Kg6 {[%clk 0:00:05.4]} 52. Rg7+ {[%clk 0:00:31.2]} 52... Kh5 {[%clk
0:00:04.6]} 53. h7 {[%clk 0:00:31.5]} 53... Re8 {[%clk 0:00:04.5]} 54. Rg8
{[%clk 0:00:29.8]} 54... Re3+ {[%clk 0:00:02.1]} 55. Kxf4 {[%clk 0:00:29.4]} 1-0

[Event "*** Titled Tuesday Blitz"]
[Site "Chess.com"]
[Date "2021.03.09"]
[Round "11"]
[White "TimofeevAr"]
[Black "frederiksvane"]
[Result "1-0"]
[WhiteElo "2873"]
[BlackElo "2663"]
[TimeControl "180+1"]
[EndTime "12:10:35 PST"]
[Termination "TimofeevAr won by checkmate"]

1. c4 {[%clk 0:03:00.9]} 1... c5 {[%clk 0:03:00]} 2. Nc3 {[%clk 0:02:59]} 2...
Nc6 {[%clk 0:02:59.5]} 3. g3 {[%clk 0:02:59.2]} 3... g6 {[%clk 0:02:59.7]} 4.
Bg2 {[%clk 0:02:59.5]} 4... Bg7 {[%clk 0:02:59.8]} 5. Nf3 {[%clk 0:03:00.1]}
5... d6 {[%clk 0:03:00.1]} 6. O-O {[%clk 0:03:00]} 6... Bf5 {[%clk 0:03:00.1]}
7. h3 {[%clk 0:02:59.2]} 7... Nf6 {[%clk 0:02:59.1]} 8. d3 {[%clk 0:02:58.9]}
8... O-O {[%clk 0:02:59.2]} 9. Bd2 {[%clk 0:02:58.3]} 9... e5 {[%clk 0:02:26.7]}
10. Ng5 {[%clk 0:02:53.7]} 10... h6 {[%clk 0:02:20.1]} 11. Nge4 {[%clk
0:02:53.3]} 11... Nxe4 {[%clk 0:02:19]} 12. dxe4 {[%clk 0:02:53.3]} 12... Be6
{[%clk 0:02:18.5]} 13. b3 {[%clk 0:02:52.6]} 13... Qd7 {[%clk 0:02:17.9]} 14.
Kh2 {[%clk 0:02:52.1]} 14... Kh8 {[%clk 0:02:13.1]} 15. Qc1 {[%clk 0:02:43.2]}
15... Kh7 {[%clk 0:02:12.5]} 16. e3 {[%clk 0:02:23.6]} 16... h5 {[%clk
0:02:05.8]} 17. Qc2 {[%clk 0:02:05.6]} 17... Nb4 {[%clk 0:02:02.9]} 18. Qb1
{[%clk 0:02:04.9]} 18... Kh8 {[%clk 0:02:01.2]} 19. Nd5 {[%clk 0:02:02.5]} 19...
Nc6 {[%clk 0:01:54.4]} 20. Qd3 {[%clk 0:02:02.1]} 20... f5 {[%clk 0:01:37.7]}
21. h4 {[%clk 0:01:44.9]} 21... Qf7 {[%clk 0:01:31.4]} 22. Rad1 {[%clk
0:01:43.1]} 22... Rad8 {[%clk 0:01:31.5]} 23. exf5 {[%clk 0:01:30.3]} 23... gxf5
{[%clk 0:01:27.8]} 24. Qe2 {[%clk 0:01:29.9]} 24... Qg6 {[%clk 0:01:09.9]} 25.
Bc3 {[%clk 0:01:29]} 25... Bxd5 {[%clk 0:00:55.4]} 26. Rxd5 {[%clk 0:01:25.1]}
26... e4 {[%clk 0:00:52.7]} 27. Bxg7+ {[%clk 0:01:23.1]} 27... Kxg7 {[%clk
0:00:53.6]} 28. Rfd1 {[%clk 0:01:15.1]} 28... Ne5 {[%clk 0:00:51.5]} 29. Qd2
{[%clk 0:01:14.8]} 29... Ng4+ {[%clk 0:00:46.8]} 30. Kg1 {[%clk 0:01:14.8]}
30... Rf6 {[%clk 0:00:46.9]} 31. Bh3 {[%clk 0:01:13.2]} 31... Kf8 {[%clk
0:00:36.6]} 32. Bg2 {[%clk 0:01:11.9]} 32... Ke7 {[%clk 0:00:26.4]} 33. b4
{[%clk 0:01:10.8]} 33... cxb4 {[%clk 0:00:19]} 34. Qxb4 {[%clk 0:01:10.4]} 34...
b6 {[%clk 0:00:19.5]} 35. Qa3 {[%clk 0:01:08.4]} 35... Rd7 {[%clk 0:00:19]} 36.
Qc3 {[%clk 0:00:59.8]} 36... Re6 {[%clk 0:00:17.4]} 37. a4 {[%clk 0:00:56.9]}
37... Ne5 {[%clk 0:00:16.1]} 38. a5 {[%clk 0:00:56.7]} 38... Qg7 {[%clk
0:00:15.9]} 39. Qb3 {[%clk 0:00:47.9]} 39... bxa5 {[%clk 0:00:10.1]} 40. c5
{[%clk 0:00:45.3]} 40... Qf6 {[%clk 0:00:08.7]} 41. Bf1 {[%clk 0:00:26.2]} 41...
dxc5 {[%clk 0:00:06.3]} 42. Be2 {[%clk 0:00:20.3]} 42... Rb6 {[%clk 0:00:04.5]}
43. Rxd7+ {[%clk 0:00:19.9]} 43... Nxd7 {[%clk 0:00:05.4]} 44. Qg8 {[%clk
0:00:20]} 44... Rd6 {[%clk 0:00:04.5]} 45. Qh7+ {[%clk 0:00:19]} 45... Kd8
{[%clk 0:00:04.9]} 46. Rb1 {[%clk 0:00:18.5]} 46... Kc7 {[%clk 0:00:03.6]} 47.
Bxh5 {[%clk 0:00:15.6]} 47... a4 {[%clk 0:00:03.6]} 48. Be8 {[%clk 0:00:11.1]}
48... a3 {[%clk 0:00:03.5]} 49. Bxd7 {[%clk 0:00:11.5]} 49... Rxd7 {[%clk
0:00:04.2]} 50. Qg8 {[%clk 0:00:11.9]} 50... Qc6 {[%clk 0:00:01.9]} 51. Qb8#
{[%clk 0:00:11.1]} 1-0

[Event "*** Titled Tuesday Blitz"]
[Site "Chess.com"]
[Date "2021.03.09"]
[Round "11"]
[White "maxip32"]
[Black "chessdiamant"]
[Result "1-0"]
[WhiteElo "2529"]
[BlackElo "2352"]
[TimeControl "180+1"]
[EndTime "12:10:35 PST"]
[Termination "maxip32 won by checkmate"]

1. e4 {[%clk 0:03:00.9]} 1... c5 {[%clk 0:02:58.7]} 2. Nf3 {[%clk 0:03:00.7]}
2... Nc6 {[%clk 0:02:58.9]} 3. d4 {[%clk 0:02:59.6]} 3... cxd4 {[%clk
0:02:59.8]} 4. Nxd4 {[%clk 0:02:58.7]} 4... e5 {[%clk 0:02:59.7]} 5. Nb5 {[%clk
0:02:58.5]} 5... d6 {[%clk 0:02:59.7]} 6. N1c3 {[%clk 0:02:58.2]} 6... a6 {[%clk
0:02:59.7]} 7. Na3 {[%clk 0:02:57.9]} 7... b5 {[%clk 0:03:00.6]} 8. Nd5 {[%clk
0:02:55]} 8... Nge7 {[%clk 0:03:01]} 9. c4 {[%clk 0:02:54.1]} 9... Nd4 {[%clk
0:03:01.4]} 10. Bd3 {[%clk 0:02:44.4]} 10... Nxd5 {[%clk 0:03:00.4]} 11. cxd5
{[%clk 0:02:44.2]} 11... g6 {[%clk 0:02:56]} 12. O-O {[%clk 0:02:43.4]} 12...
Bg7 {[%clk 0:02:55.7]} 13. Nc2 {[%clk 0:02:44.3]} 13... Nxc2 {[%clk 0:02:55.5]}
14. Qxc2 {[%clk 0:02:43.3]} 14... Bd7 {[%clk 0:02:56.4]} 15. Bd2 {[%clk
0:02:33.5]} 15... O-O {[%clk 0:02:55.2]} 16. Rfc1 {[%clk 0:02:14.9]} 16... Rc8
{[%clk 0:02:48.7]} 17. Qb3 {[%clk 0:02:09.9]} 17... f5 {[%clk 0:02:47.6]} 18. f3
{[%clk 0:02:08.7]} 18... Qb6+ {[%clk 0:02:46.6]} 19. Kh1 {[%clk 0:02:04.2]}
19... fxe4 {[%clk 0:02:45.4]} 20. fxe4 {[%clk 0:01:51.1]} 20... Qf2 {[%clk
0:02:39.3]} 21. Qd1 {[%clk 0:01:47.4]} 21... h5 {[%clk 0:02:01.2]} 22. Qe1
{[%clk 0:01:45.9]} 22... Rxc1 {[%clk 0:01:55.1]} 23. Rxc1 {[%clk 0:01:43.9]}
23... Qd4 {[%clk 0:01:55.7]} 24. Rc3 {[%clk 0:01:29.3]} 24... Qf2 {[%clk
0:01:39.8]} 25. Qxf2 {[%clk 0:01:13.6]} 25... Rxf2 {[%clk 0:01:40.7]} 26. Rc2
{[%clk 0:01:13.9]} 26... h4 {[%clk 0:01:11.8]} 27. Kg1 {[%clk 0:01:11.2]} 27...
Rf7 {[%clk 0:01:11.2]} 28. h3 {[%clk 0:01:07.1]} 28... Kh7 {[%clk 0:01:06.1]}
29. Bg5 {[%clk 0:01:03.3]} 29... Bh6 {[%clk 0:00:46]} 30. Bxh4 {[%clk
0:00:59.9]} 30... Be3+ {[%clk 0:00:45.8]} 31. Kh2 {[%clk 0:01:00.2]} 31... Kh6
{[%clk 0:00:43.6]} 32. Bg3 {[%clk 0:00:53.6]} 32... Bd4 {[%clk 0:00:42.1]} 33.
b3 {[%clk 0:00:53.1]} 33... b4 {[%clk 0:00:39.9]} 34. Rc7 {[%clk 0:00:52.5]}
34... a5 {[%clk 0:00:15.9]} 35. Be1 {[%clk 0:00:37.5]} 35... Kg7 {[%clk
0:00:12.9]} 36. Be2 {[%clk 0:00:25.2]} 36... g5 {[%clk 0:00:11.9]} 37. Bh5
{[%clk 0:00:23.6]} 37... Re7 {[%clk 0:00:11.9]} 38. Bg4 {[%clk 0:00:23.5]} 38...
Bxg4 {[%clk 0:00:08.2]} 39. Rxe7+ {[%clk 0:00:23]} 39... Kf6 {[%clk 0:00:08.6]}
40. Re8 {[%clk 0:00:15.2]} 40... Be2 {[%clk 0:00:08.2]} 41. Re6+ {[%clk
0:00:15]} 41... Kf7 {[%clk 0:00:08]} 42. Rxd6 {[%clk 0:00:15.9]} 42... Bd3
{[%clk 0:00:07.9]} 43. Rd7+ {[%clk 0:00:16]} 43... Ke8 {[%clk 0:00:06.9]} 44.
Rg7 {[%clk 0:00:15.9]} 44... Bxe4 {[%clk 0:00:06.2]} 45. d6 {[%clk 0:00:16.3]}
45... Bb1 {[%clk 0:00:04.3]} 46. Bd2 {[%clk 0:00:14.2]} 46... e4 {[%clk
0:00:04.2]} 47. Re7+ {[%clk 0:00:13.2]} 47... Kf8 {[%clk 0:00:03.5]} 48. Bxg5
{[%clk 0:00:13.3]} 48... e3 {[%clk 0:00:03.8]} 49. d7 {[%clk 0:00:13.2]} 49...
e2 {[%clk 0:00:02]} 50. d8=Q# {[%clk 0:00:13.3]} 1-0

[Event "*** Titled Tuesday Blitz"]
[Site "Chess.com"]
[Date "2021.03.09"]
[Round "11"]
[White "dosto07"]
[Black "DonBroca"]
[Result "0-1"]
[WhiteElo "2270"]
[BlackElo "2160"]
[TimeControl "180+1"]
[EndTime "12:10:38 PST"]
[Termination "DonBroca won on time"]

1. d4 {[%clk 0:03:00.9]} 1... Nf6 {[%clk 0:02:59]} 2. Nf3 {[%clk 0:03:01.2]}
2... e6 {[%clk 0:02:59.4]} 3. g3 {[%clk 0:02:59.7]} 3... b6 {[%clk 0:02:58.6]}
4. Bg2 {[%clk 0:03:00]} 4... Bb7 {[%clk 0:02:59.2]} 5. O-O {[%clk 0:03:00.4]}
5... Be7 {[%clk 0:02:58]} 6. c4 {[%clk 0:03:00.9]} 6... d5 {[%clk 0:02:58.2]} 7.
Nc3 {[%clk 0:03:00.6]} 7... dxc4 {[%clk 0:02:58.3]} 8. Qa4+ {[%clk 0:02:52.1]}
8... Nbd7 {[%clk 0:02:58]} 9. Qxc4 {[%clk 0:02:50.6]} 9... O-O {[%clk
0:02:58.5]} 10. Bg5 {[%clk 0:02:49.5]} 10... c5 {[%clk 0:02:57.6]} 11. dxc5
{[%clk 0:02:47.5]} 11... Bxc5 {[%clk 0:02:54]} 12. Rad1 {[%clk 0:02:45.7]} 12...
Rc8 {[%clk 0:02:53.8]} 13. Qh4 {[%clk 0:02:28]} 13... Qe7 {[%clk 0:02:49.6]} 14.
e4 {[%clk 0:02:05.3]} 14... h6 {[%clk 0:02:32.4]} 15. Bxf6 {[%clk 0:01:58]}
15... Nxf6 {[%clk 0:02:33.3]} 16. Ne5 {[%clk 0:01:33.3]} 16... Rfe8 {[%clk
0:02:18.8]} 17. Nd3 {[%clk 0:01:28.1]} 17... Nd7 {[%clk 0:01:46.5]} 18. Qxe7
{[%clk 0:01:14.9]} 18... Bxe7 {[%clk 0:01:40.6]} 19. e5 {[%clk 0:00:51.8]} 19...
Bxg2 {[%clk 0:00:58.9]} 20. Kxg2 {[%clk 0:00:50.7]} 20... Red8 {[%clk
0:00:54.9]} 21. Rfe1 {[%clk 0:00:44.1]} 21... Nc5 {[%clk 0:00:50.7]} 22. Nxc5
{[%clk 0:00:41.7]} 22... Bxc5 {[%clk 0:00:51.6]} 23. Ne4 {[%clk 0:00:35.3]}
23... Bd4 {[%clk 0:00:31]} 24. Nd6 {[%clk 0:00:32.2]} 24... Bxb2 {[%clk
0:00:26.4]} 25. Nxc8 {[%clk 0:00:30.8]} 25... Rxc8 {[%clk 0:00:26.4]} 26. Rd7
{[%clk 0:00:28.9]} 26... a5 {[%clk 0:00:25.8]} 27. Re2 {[%clk 0:00:27.7]} 27...
Ba3 {[%clk 0:00:24.3]} 28. Red2 {[%clk 0:00:25.9]} 28... Rc6 {[%clk 0:00:19.1]}
29. h4 {[%clk 0:00:20.2]} 29... Bb4 {[%clk 0:00:17.1]} 30. Rd8+ {[%clk
0:00:13.8]} 30... Kh7 {[%clk 0:00:17.4]} 31. R2d7 {[%clk 0:00:13.8]} 31... Kg6
{[%clk 0:00:17.7]} 32. Rd4 {[%clk 0:00:09.2]} 32... Rc2 {[%clk 0:00:17.7]} 33.
Rg4+ {[%clk 0:00:07.5]} 33... Kh7 {[%clk 0:00:17.9]} 34. Rf4 {[%clk 0:00:07.3]}
34... Kg6 {[%clk 0:00:17.7]} 35. Rd7 {[%clk 0:00:06.9]} 35... f6 {[%clk
0:00:15.9]} 36. exf6 {[%clk 0:00:06.9]} 36... gxf6 {[%clk 0:00:16.2]} 37. Rd8
{[%clk 0:00:04.7]} 37... e5 {[%clk 0:00:16]} 38. Rg8+ {[%clk 0:00:04]} 38... Kf7
{[%clk 0:00:16.3]} 39. Rfg4 {[%clk 0:00:03.8]} 39... Rxf2+ {[%clk 0:00:15.7]}
40. Kh3 {[%clk 0:00:03.8]} 40... Rxa2 {[%clk 0:00:10.5]} 41. R4g7+ {[%clk
0:00:04.7]} 41... Ke6 {[%clk 0:00:10.6]} 42. Kg4 {[%clk 0:00:05.1]} 42... Bd2
{[%clk 0:00:09.1]} 43. Kh5 {[%clk 0:00:05.1]} 43... Ra3 {[%clk 0:00:08.3]} 44.
Re8+ {[%clk 0:00:06]} 44... Kf5 {[%clk 0:00:07.7]} 45. g4+ {[%clk 0:00:06]}
45... Ke4 {[%clk 0:00:08.1]} 46. Rd7 {[%clk 0:00:05.4]} 46... Be3 {[%clk
0:00:07.3]} 47. Re6 {[%clk 0:00:06.3]} 47... Ra2 {[%clk 0:00:05.8]} 48. Rxf6
{[%clk 0:00:06.5]} 48... Rh2 {[%clk 0:00:04.6]} 49. Re6 {[%clk 0:00:05.5]} 49...
Bf2 {[%clk 0:00:04.4]} 50. Rf7 {[%clk 0:00:04.9]} 50... Rxh4+ {[%clk 0:00:04.2]}
51. Kg6 {[%clk 0:00:03.8]} 51... Bg3 {[%clk 0:00:04.9]} 52. Rf5 {[%clk
0:00:02.8]} 52... Bf4 {[%clk 0:00:04.9]} 53. Rf7 {[%clk 0:00:01.4]} 53... a4
{[%clk 0:00:04.5]} 54. Kh7 {[%clk 0:00:01.6]} 54... Rh3 {[%clk 0:00:04.7]} 55.
Ra7 {[%clk 0:00:01.8]} 55... a3 {[%clk 0:00:05]} 0-1

[Event "*** Titled Tuesday Blitz"]
[Site "Chess.com"]
[Date "2021.03.09"]
[Round "11"]
[White "MuhittinBuker"]
[Black "IMVoja"]
[Result "0-1"]
[WhiteElo "2183"]
[BlackElo "2413"]
[TimeControl "180+1"]
[EndTime "12:10:40 PST"]
[Termination "IMVoja won on time"]

1. d4 {[%clk 0:03:00.9]} 1... Nf6 {[%clk 0:02:58.8]} 2. c4 {[%clk 0:03:01.8]}
2... c5 {[%clk 0:02:55.7]} 3. d5 {[%clk 0:03:01.4]} 3... b5 {[%clk 0:02:55.9]}
4. cxb5 {[%clk 0:03:00.8]} 4... a6 {[%clk 0:02:56.3]} 5. bxa6 {[%clk 0:03:01]}
5... Bxa6 {[%clk 0:02:56.3]} 6. Nc3 {[%clk 0:03:01]} 6... d6 {[%clk 0:02:56.7]}
7. e4 {[%clk 0:03:00.5]} 7... Bxf1 {[%clk 0:02:55.9]} 8. Kxf1 {[%clk 0:03:01.4]}
8... g6 {[%clk 0:02:56.1]} 9. g3 {[%clk 0:03:02]} 9... Bg7 {[%clk 0:02:56.3]}
10. Kg2 {[%clk 0:03:02.8]} 10... O-O {[%clk 0:02:56.6]} 11. Nf3 {[%clk
0:03:03.3]} 11... Nbd7 {[%clk 0:02:56.9]} 12. Re1 {[%clk 0:03:03.9]} 12... Ng4
{[%clk 0:02:55.9]} 13. Qe2 {[%clk 0:03:04.1]} 13... Qb6 {[%clk 0:02:49.4]} 14.
Nd2 {[%clk 0:02:59.7]} 14... h5 {[%clk 0:02:39.7]} 15. h3 {[%clk 0:02:58.5]}
15... Ngf6 {[%clk 0:02:38.4]} 16. Nc4 {[%clk 0:02:57.1]} 16... Qa6 {[%clk
0:02:37.6]} 17. Bg5 {[%clk 0:02:47.6]} 17... Rfb8 {[%clk 0:02:26.9]} 18. Rac1
{[%clk 0:02:40.4]} 18... Nb6 {[%clk 0:02:26]} 19. Nxb6 {[%clk 0:02:39.1]} 19...
Qxb6 {[%clk 0:02:18.5]} 20. Rc2 {[%clk 0:02:39.2]} 20... Rb7 {[%clk 0:02:13.8]}
21. Qd3 {[%clk 0:01:52.6]} 21... Nd7 {[%clk 0:02:03.5]} 22. f4 {[%clk
0:01:47.2]} 22... Bxc3 {[%clk 0:01:45.1]} 23. bxc3 {[%clk 0:01:46.1]} 23... f6
{[%clk 0:01:44.8]} 24. Bh4 {[%clk 0:01:43.4]} 24... Qa6 {[%clk 0:01:38.7]} 25.
c4 {[%clk 0:01:33.8]} 25... Qa3 {[%clk 0:01:36.3]} 26. Re3 {[%clk 0:01:19.5]}
26... Qxd3 {[%clk 0:01:29.9]} 27. Rxd3 {[%clk 0:01:19.6]} 27... Rba7 {[%clk
0:01:26.8]} 28. Rdd2 {[%clk 0:01:08.9]} 28... Kf7 {[%clk 0:01:25.6]} 29. g4
{[%clk 0:01:09.1]} 29... hxg4 {[%clk 0:01:18.7]} 30. hxg4 {[%clk 0:01:08.9]}
30... g5 {[%clk 0:01:18.7]} 31. Bg3 {[%clk 0:01:04.8]} 31... gxf4 {[%clk
0:01:17]} 32. Bxf4 {[%clk 0:01:04.9]} 32... Ra3 {[%clk 0:01:15.5]} 33. Rf2
{[%clk 0:00:49.8]} 33... Rg8 {[%clk 0:01:09.9]} 34. g5 {[%clk 0:00:49.3]} 34...
Ke8 {[%clk 0:00:57.8]} 35. Rf3 {[%clk 0:00:41]} 35... Rxf3 {[%clk 0:00:50.3]}
36. Kxf3 {[%clk 0:00:40.8]} 36... fxg5 {[%clk 0:00:51.2]} 37. Rg2 {[%clk
0:00:35.7]} 37... Nb6 {[%clk 0:00:44.4]} 38. Rxg5 {[%clk 0:00:29.7]} 38... Rxg5
{[%clk 0:00:43.1]} 39. Bxg5 {[%clk 0:00:29.8]} 39... Nxc4 {[%clk 0:00:44]} 40.
Ke2 {[%clk 0:00:27.7]} 40... Kd7 {[%clk 0:00:41.3]} 41. Kd3 {[%clk 0:00:25.8]}
41... Nb6 {[%clk 0:00:41.3]} 42. Kc3 {[%clk 0:00:22.7]} 42... e6 {[%clk
0:00:40.5]} 43. dxe6+ {[%clk 0:00:21.5]} 43... Kxe6 {[%clk 0:00:40.9]} 44. Bf4
{[%clk 0:00:20.7]} 44... Kd7 {[%clk 0:00:36]} 45. Bg3 {[%clk 0:00:17.2]} 45...
Kc6 {[%clk 0:00:35.6]} 46. Bf4 {[%clk 0:00:17.5]} 46... Nd7 {[%clk 0:00:32.5]}
47. Kc4 {[%clk 0:00:15.9]} 47... Nf6 {[%clk 0:00:29.9]} 48. Kd3 {[%clk
0:00:14.9]} 48... Ng4 {[%clk 0:00:24.5]} 49. Kc4 {[%clk 0:00:13.8]} 49... Nf2
{[%clk 0:00:23.1]} 50. e5 {[%clk 0:00:09.7]} 50... d5+ {[%clk 0:00:23.1]} 51.
Kc3 {[%clk 0:00:08.1]} 51... Ne4+ {[%clk 0:00:22]} 52. Kc2 {[%clk 0:00:06.5]}
52... c4 {[%clk 0:00:21.4]} 53. Be3 {[%clk 0:00:05]} 53... Ng3 {[%clk
0:00:19.8]} 54. Bd4 {[%clk 0:00:04.3]} 54... Nf5 {[%clk 0:00:19.7]} 0-1

[Event "*** Titled Tuesday Blitz"]
[Site "Chess.com"]
[Date "2021.03.09"]
[Round "11"]
[White "ri4mi"]
[Black "ural58"]
[Result "1-0"]
[WhiteElo "2447"]
[BlackElo "2554"]
[TimeControl "180+1"]
[EndTime "12:10:42 PST"]
[Termination "ri4mi won by resignation"]

1. d4 {[%clk 0:03:00.9]} 1... d5 {[%clk 0:02:06.9]} 2. Nc3 {[%clk 0:03:01]} 2...
Nf6 {[%clk 0:02:05.3]} 3. Bf4 {[%clk 0:03:01.4]} 3... a6 {[%clk 0:02:05.2]} 4.
e3 {[%clk 0:03:01.7]} 4... c5 {[%clk 0:02:03.7]} 5. Nf3 {[%clk 0:03:02.2]} 5...
e6 {[%clk 0:02:00.6]} 6. Ne5 {[%clk 0:03:02]} 6... b5 {[%clk 0:01:54.3]} 7. Be2
{[%clk 0:02:59]} 7... Bb7 {[%clk 0:01:52.4]} 8. O-O {[%clk 0:02:58.8]} 8... Be7
{[%clk 0:01:49.8]} 9. a3 {[%clk 0:02:54.2]} 9... O-O {[%clk 0:01:49.1]} 10. Bg5
{[%clk 0:02:49]} 10... Nbd7 {[%clk 0:01:44.9]} 11. f4 {[%clk 0:02:48.7]} 11...
b4 {[%clk 0:01:42.1]} 12. Nb1 {[%clk 0:02:40.1]} 12... Ne4 {[%clk 0:01:41.5]}
13. Bxe7 {[%clk 0:02:39.5]} 13... Qxe7 {[%clk 0:01:41.3]} 14. Nd2 {[%clk
0:02:38.4]} 14... cxd4 {[%clk 0:01:28.7]} 15. exd4 {[%clk 0:02:34.8]} 15... a5
{[%clk 0:01:21.4]} 16. Nxe4 {[%clk 0:02:18]} 16... dxe4 {[%clk 0:01:20.9]} 17.
Qd2 {[%clk 0:02:18.4]} 17... Nf6 {[%clk 0:01:05.6]} 18. axb4 {[%clk 0:02:08.4]}
18... axb4 {[%clk 0:01:05]} 19. c4 {[%clk 0:02:03.9]} 19... bxc3 {[%clk
0:01:00.2]} 20. bxc3 {[%clk 0:02:04.8]} 20... Nd5 {[%clk 0:00:37.4]} 21. Rxa8
{[%clk 0:02:00.7]} 21... Rxa8 {[%clk 0:00:36.5]} 22. c4 {[%clk 0:02:01.2]} 22...
Nf6 {[%clk 0:00:19.5]} 23. Rb1 {[%clk 0:01:52]} 23... h6 {[%clk 0:00:18.8]} 24.
Qb2 {[%clk 0:01:49.6]} 24... Ba6 {[%clk 0:00:17.6]} 25. Qb6 {[%clk 0:01:25.8]}
25... Kh7 {[%clk 0:00:15.7]} 26. Qc6 {[%clk 0:01:17.7]} 26... Ra7 {[%clk
0:00:15.3]} 27. g4 {[%clk 0:00:56.3]} 27... Bb7 {[%clk 0:00:14.7]} 28. Qb6
{[%clk 0:00:55.7]} 28... Ra2 {[%clk 0:00:14.6]} 29. Qxb7 {[%clk 0:00:43]} 29...
Qxb7 {[%clk 0:00:13.8]} 30. Rxb7 {[%clk 0:00:43.9]} 30... Rxe2 {[%clk
0:00:13.8]} 31. g5 {[%clk 0:00:35.6]} 31... hxg5 {[%clk 0:00:13.3]} 32. fxg5
{[%clk 0:00:36.5]} 32... Nh5 {[%clk 0:00:11.3]} 33. Rxf7 {[%clk 0:00:36]} 33...
Rd2 {[%clk 0:00:10.7]} 34. c5 {[%clk 0:00:14.6]} 34... Rxd4 {[%clk 0:00:10.5]}
35. c6 {[%clk 0:00:15]} 35... Rd1+ {[%clk 0:00:11.4]} 36. Kf2 {[%clk 0:00:14.8]}
36... Rc1 {[%clk 0:00:11.7]} 37. Ke3 {[%clk 0:00:14.7]} 37... Rc5 {[%clk
0:00:09.6]} 38. Kd4 {[%clk 0:00:13.8]} 38... Rc1 {[%clk 0:00:09.3]} 39. Kxe4
{[%clk 0:00:14.2]} 39... Kg8 {[%clk 0:00:08.5]} 40. c7 {[%clk 0:00:12.9]} 40...
g6 {[%clk 0:00:07.5]} 41. Rd7 {[%clk 0:00:09.1]} 41... Ng7 {[%clk 0:00:06.7]}
42. Rd8+ {[%clk 0:00:08.6]} 42... Kh7 {[%clk 0:00:07.6]} 43. c8=Q {[%clk
0:00:09.5]} 43... Rxc8 {[%clk 0:00:07.8]} 44. Rxc8 {[%clk 0:00:10.4]} 44... Nf5
{[%clk 0:00:08.2]} 45. Rc7+ {[%clk 0:00:10.7]} 45... Kg8 {[%clk 0:00:07.7]} 46.
Nxg6 {[%clk 0:00:10.6]} 46... Ng7 {[%clk 0:00:06.5]} 47. Ke5 {[%clk 0:00:09.3]}
47... Kh7 {[%clk 0:00:04.6]} 48. Nf8+ {[%clk 0:00:05.7]} 48... Kg8 {[%clk
0:00:04.7]} 49. Rxg7+ {[%clk 0:00:05.8]} 49... Kxg7 {[%clk 0:00:04.4]} 50. Nxe6+
{[%clk 0:00:06.7]} 50... Kg6 {[%clk 0:00:05.3]} 51. h4 {[%clk 0:00:06.5]} 1-0